Workbook

Sheet свод тарифи САО с 01.10.23
F1: Додаток №1 до Наказу ________________________
C2: Діючи
A3: тарифи на теплову енергію та послуги з постачання теплової енергії окремо для кожного багатоквартирного будинку, обладнаного системою автономного опалення по КП "Теплоенерго"
G4: з 01.10.2023 року
A5: № з/п | B5: Адреса, за якою розташована САО (вулиця, будинок, корпус) | C5: Тарифи на теплову енергію, грн./Гкал (без ПДВ) | F5: Тарифи на послуги з постачання теплової енергії, грн./Гкал (з ПДВ)
C6: застосовуються з 01.10.2023 р. | F6: =C6 -> застосовуються з 01.10.2023 р.
C7: населення | D7: бюджетні установи | E7: інші споживачі | F7: населення | G7: бюджетні установи | H7: інші споживачі
A8: 1 | B8: ВОКЗАЛЬНА, 2 | C8: 1451.1 | E8: ='[103]свод т-е'!AB54 -> 5735.8 | F8: =C8*1.2 -> 1741.32 | H8: =E8*1.2 -> 6882.96
A9: 2 | B9: ВОЛОДИМИРА ВЕРНАДСЬКОГО , 22 | C9: 1451.1 | F9: 1741.32
A10: 3 | B10: ВОЛОДИМИРА ВЕРНАДСЬКОГО , 24 | C10: 1451.1 | E10: ='[103]свод т-е'!AN54 -> 5819.87 | F10: 1741.32 | H10: =E10*1.2 -> 6983.844
A11: 4 | B11: ВОЛОДИМИРА МОНОМАХА , 8 | C11: 1451.1 | E11: ='[103]свод т-е'!AR54 -> 5911.38 | F11: 1741.32 | H11: =E11*1.2 -> 7093.656
A12: 5 | B12: ВОСКРЕСЕНСЬКА, 1 | C12: 1451.1 | E12: ='[103]свод т-е'!AZ54 -> 6122.03 | F12: 1741.32 | H12: =E12*1.2 -> 7346.436
A13: 6 | B13: ГАГАРІНА, 31 | C13: 1451.1 | E13: ='[103]свод т-е'!BD54 -> 5919.67 | F13: 1741.32 | H13: =E13*1.2 -> 7103.604
A14: 7 | B14: ДАРНИЦЬКА, 21 | C14: 1451.1 | E14: ='[103]свод т-е'!BL54 -> 5767.14 | F14: 1741.32 | H14: =E14*1.2 -> 6920.568
A15: 8 | B15: ДМИТРА ЯВОРНИЦЬКОГО, 33 | C15: 1451.1 | E15: ='[103]свод т-е'!BP54 -> 6111.89 | F15: 1741.32 | H15: 7334.268
A16: 9 | B16: ДМИТРА ЯВОРНИЦЬКОГО, 72А | C16: 1451.1 | D16: 3766.38 | E16: ='[103]свод т-е'!BT54 -> 7423.05 | F16: 1741.32 | G16: =D16*1.2 -> 4519.656 | H16: 8907.66
A17: 10 | B17: ДМИТРА ЯВОРНИЦЬКОГ , 74 | C17: 1451.1 | E17: ='[103]свод т-е'!BX54 -> 6483.66 | F17: 1741.32 | H17: 7780.392
A18: 11 | B18: ДМИТРА ЯВОРНИЦЬКОГО), 96 | C18: 1451.1 | E18: ='[103]свод т-е'!CB54 -> 6296.63 | F18: 1741.32 | H18: 7555.956
A19: 12 | B19: ДМИТРА ЯВОРНИЦЬКОГО, 100 | C19: 1451.1 | E19: ='[103]свод т-е'!CJ54 -> 5737.5 | F19: 1741.32 | H19: 6885
A20: 13 | B20: ДМИТРА ЯВОРНИЦЬКОГО, 105 | C20: 1451.1 | E20: ='[103]свод т-е'!CN54 -> 6282.15 | F20: 1741.32 | H20: 7538.58
A21: 14 | B21: ЄВГЕНІЯ КОНОВАЛЬЦЯ, 13 | C21: 1451.1 | F21: 1741.32
A22: 15 | B22: ЗАПОРІЗЬКЕ ШОСЕ, 14 | C22: 1451.1 | F22: 1741.32
A23: 16 | B23: ЗОРЯНИЙ, 1 Оч-1 | C23: 1451.1 | E23: ='[103]свод т-е'!DH54 -> 5845.5 | F23: 1741.32 | H23: =E23*1.2 -> 7014.6
A24: 17 | B24: ЗОРЯНИЙ, 1 Оч-2 | C24: 1451.1 | E24: ='[103]свод т-е'!DH54 -> 5845.5 | F24: 1741.32 | H24: 7014.6
A25: 18 | B25: ІВАНА АКІНФІЄВА ), 10 | C25: 1451.1 | E25: ='[103]свод т-е'!DL54 -> 6647.59 | F25: 1741.32 | H25: 7977.108
A26: 19 | B26: ІВАНА АКІНФІЄВА, 12Б | C26: 1451.1 | E26: ='[103]свод т-е'!DP54 -> 7528.92 | F26: 1741.32 | H26: 9034.704
A27: 20 | B27: ІВАНА АКІНФІЄВА, 14 | C27: 1451.1 | E27: ='[103]свод т-е'!DT54 -> 6056.97 | F27: 1741.32 | H27: 7268.364
A28: 21 | B28: ІВАНА АКІНФІЄВА, 17 | C28: 1451.1 | D28: 2452.49 | E28: ='[103]свод т-е'!DX54 -> 6331.12 | F28: 1741.32 | G28: =D28*1.2 -> 2942.988 | H28: 7597.344
A29: 22 | B29: МИХАЙЛА ГРУШЕВСЬКОГО, 14 | C29: 1451.1 | F29: 1741.32
A30: 23 | B30: МУСЛІМА МАГОМАЄВА, 1А | C30: 1451.1 | F30: 1741.32
A31: 24 | B31: ОЛЕСЯ ГОНЧАРА, 6 | C31: 1451.1 | E31: ='[103]свод т-е'!FD54 -> 6450.58 | F31: 1741.32 | H31: =E31*1.2 -> 7740.696
A32: 25 | B32: ПАСТЕРА, 12 | C32: 1451.1 | E32: ='[103]свод т-е'!FT54 -> 6336.15 | F32: 1741.32 | H32: =E32*1.2 -> 7603.38
A33: 26 | B33: ПАТОРЖИНСЬКОГО, 27 | C33: 1451.1 | E33: ='[103]свод т-е'!FX54 -> 8281.57 | F33: 1741.32 | H33: =E33*1.2 -> 9937.884
A34: 27 | B34: РОМАНА ШУХЕВИЧА, 28/32 | C34: 1451.1 | D34: 2872.4 | F34: 1741.32 | G34: =D34*1.2 -> 3446.88
A35: 28 | B35: СВЯТОСЛАВА ХОРОБРОГО, 22 | C35: 1451.1 | E35: ='[103]свод т-е'!GN54 -> 6812.9 | F35: 1741.32 | H35: =E35*1.2 -> 8175.48
A36: 29 | B36: СЕВАСТОПОЛЬСЬКА, 1 | C36: 1451.1 | F36: 1741.32
A37: 30 | B37: СЕРГІЯ ЄФРЕМОВА, 1 | C37: 1451.1 | E37: ='[103]свод т-е'!HD54 -> 5951.99 | F37: 1741.32 | H37: =E37*1.2 -> 7142.388
A38: 31 | B38: СЕРГІЯ ЄФРЕМОВА, 4 | C38: 1451.1 | F38: 1741.32
A39: 32 | B39: СЕРГІЯ ЄФРЕМОВА, 21А | C39: 1451.1 | E39: ='[103]свод т-е'!HL54 -> 7233.06 | F39: 1741.32 | H39: =E39*1.2 -> 8679.672
A40: 33 | B40: СТАРОКОЗАЦЬКА, 74А | C40: 1451.1 | E40: ='[103]свод т-е'!IN54 -> 6464.84 | F40: 1741.32 | H40: =E40*1.2 -> 7757.808
A41: 34 | B41: ТИВЕРСЬКИЙ, 2 | C41: 1451.1 | F41: 1741.32
A42: 35 | B42: ТРОЇЦЬКА), 22А | C42: 1451.1 | E42: ='[103]свод т-е'!JD54 -> 5744.39 | F42: 1741.32 | H42: =E42*1.2 -> 6893.268
A43: 36 | B43: ШОЛОМ АЛЕЙХЕМ, 4А | C43: 1451.1 | D43: 4158.91 | F43: 1741.32 | G43: =D43*1.2 -> 4990.692
B46: Начальник ПЕВ
